[Event "KAZ-ch Open 2019"]
[Site "Almaty"]
[Date "2019.04.21"]
[Round "1.1"]
[White "Kostenko, Petr"]
[Black "Agmanov, Zhandos"]
[Result "1/2-1/2"]
[ECO "A05"]
[WhiteElo "2450"]
[BlackElo "2394"]
[Annotator "ChessBase"]
[PlyCount "187"]
[EventDate "2019.04.21"]
[EventType "tourn"]
[EventCountry "KAZ"]
[SourceTitle "playchess.com"]
[Source "ChessBase"]
[SourceQuality "1"]
[TimeControl "40/5400+30:1800+30"]

1. Nf3 {[%emt 0:00:00]} Nf6 {[%emt 0:01:18]} 2. c4 {[%emt 0:00:00]} e6 {[%emt 0:00:30]} 3. e3 {[%emt 0:00:20]} d5 {[%emt 0:00:24]} 4. b3 {[%emt 0:00:25]} Be7 {[%emt 0:01:32]} 5. Bb2 {[%emt 0:00:09]} dxc4 {[%emt 0:02:18]} 6. bxc4 {[%emt 0:02:05]} O-O {[%emt 0:03:14]} 7. Qc2 {[%emt 0:15:27]} Nbd7 {[%emt 0:11:51]} 8. Nc3 {[%emt 0:26:43]} c5 {[%emt 0:06:40]} 9. Rg1 {[%emt 0:02:45]} b6 {[%emt 0:08:13]} 10. g4 {[%emt 0:00:09]} Bb7 {[%emt 0:00:12]} 11. Be2 {[%emt 0:00:13]} Ne8 {[%emt 0:10:31]} 12. h4 {[%emt 0:08:44]} Nd6 {[%emt 0:04:25]} 13. Ng5 {[%emt 0:00:45]} Bxg5 {[%emt 0:14:08]} 14. hxg5 {[%emt 0:00:06]} Ne5 {[%emt 0:00:59]} 15. d3 {[%emt 0:01:35]} Nf3+ {[%emt 0:07:36]} 16. Bxf3 {[%emt 0:00:14]} Bxf3 {[%emt 0:00:02]} 17. Rg3 {[%emt 0:00:41]} Bb7 {[%emt 0:00:28]} 18. f4 {[%emt 0:00:12]} e5 {[%emt 0:03:53]} 19. O-O-O {[%emt 0:01:15]} exf4 {[%emt 0:00:29]} 20. exf4 {[%emt 0:00:08]} f6 {[%emt 0:03:30]} 21. gxf6 {[%emt 0:07:58]} Qxf6 {[%emt 0:00:33]} 22. Nd5 {[%emt 0:15:15]} Qf7 {[%emt 0:00:25]} 23. Be5 {[%emt 0:01:45]} Bxd5 {[%emt 0:03:28]} 24. Bxd6 {[%emt 0:00:13]} Bc6 {[%emt 0:00:33]} 25. Qh2 {[%emt 0:05:05]} Rfe8 {[%emt 0:02:16]} 26. Rh3 {[%emt 0:01:01]} Qg6 {[%emt 0:01:55]} 27. Be5 {[%emt 0:02:04]} Re7 {[%emt 0:03:11]} 28. Rh5 {[%emt 0:02:08]} Bf3 {[%emt 0:04:10]} 29. f5 {[%emt 0:00:32]} Qxg4 {[%emt 0:00:32]} 30. Rxh7 {[%emt 0:01:28]} Bxd1 {[%emt 0:01:06]} 31. f6 {[%emt 0:00:38]} Qe2 {[%emt 0:04:25]} 32. fxe7 {[%emt 0:04:13]} Qxh2 {[%emt 0:00:13]} 33. Rxh2 {[%emt 0:00:17]} Ba4 {[%emt 0:00:38]} 34. Rg2 {[%emt 0:00:11]} Kf7 {[%emt 0:00:08]} 35. Rxg7+ {[%emt 0:00:04]} Ke6 {[%emt 0:00:03]} 36. Bc7 {[%emt 0:01:17]} Rh8 {[%emt 0:00:41]} 37. Bd8 {[%emt 0:00:34]} Rh3 {[%emt 0:00:43]} 38. Rg6+ {[%emt 0:01:06]} Kd7 {[%emt 0:00:56]} 39. Rg8 {[%emt 0:00:17]} Re3 {[%emt 0:00:07]} 40. Kd2 {[%emt 0:00:33]} Re6 {[%emt 0:00:01]} 41. Rg1 {[%emt 0:03:50]} Bc6 {[%emt 0:03:28]} 42. Rg7 {[%emt 0:02:20]} Ke8 {[%emt 0:01:19]} 43. Rg3 {[%emt 0:01:59]} Kd7 {[%emt 0:01:01]} 44. d4 {[%emt 0:01:30]} cxd4 {[%emt 0:00:12]} 45. Ra3 {[%emt 0:00:18]} a5 {[%emt 0:01:34]} 46. Bxb6 {[%emt 0:02:58]} a4 {[%emt 0:01:24]} 47. Bc5 {[%emt 0:05:35]} Re3 {[%emt 0:06:01]} 48. Rxe3 {[%emt 0:00:11]} dxe3+ {[%emt 0:00:05]} 49. Kxe3 {[%emt 0:00:03]} Kc7 {[%emt 0:00:20]} 50. Kd4 {[%emt 0:00:32]} Be8 {[%emt 0:00:17]} 51. Kc3 {[%emt 0:08:03]} Kc6 {[%emt 0:00:28]} 52. Kb4 {[%emt 0:00:11]} Kb7 {[%emt 0:00:22]} 53. Be3 {[%emt 0:00:20]} Bc6 {[%emt 0:00:06]} 54. Kc5 {[%emt 0:00:19]} Be8 {[%emt 0:00:09]} 55. Kd6 {[%emt 0:00:18]} Bc6 {[%emt 0:00:05]} 56. a3 {[%emt 0:00:36]} Be8 {[%emt 0:00:05]} 57. Bd2 {[%emt 0:03:34]} Bc6 {[%emt 0:00:11]} 58. Ba5 {[%emt 0:02:43]} Be8 {[%emt 0:00:03]} 59. c5 {[%emt 0:01:11]} Bc6 {[%emt 0:00:17]} 60. Bd2 {[%emt 0:00:51]} Be8 {[%emt 0:00:04]} 61. Be3 {[%emt 0:00:23]} Bc6 {[%emt 0:00:06]} 62. Ke6 {[%emt 0:00:28]} Be8 {[%emt 0:00:04]} 63. Kf6 {[%emt 0:00:11]} Kc6 {[%emt 0:00:05]} 64. Kg7 {[%emt 0:00:09]} Kd7 {[%emt 0:00:06]} 65. Bg5 {[%emt 0:00:18]} Bh5 {[%emt 0:00:05]} 66. Bh4 {[%emt 0:00:25]} Be8 {[%emt 0:00:06]} 67. Kf6 {[%emt 0:00:17]} Kc6 {[%emt 0:00:26]} 68. Bf2 {[%emt 0:00:35]} Kd7 {[%emt 0:00:13]} 69. Be3 {[%emt 0:00:09]} Kc6 {[%emt 0:00:35]} 70. Kg7 {[%emt 0:01:06]} Kd7 {[%emt 0:00:06]} 71. Kf8 {[%emt 0:00:41]} Bh5 {[%emt 0:00:09]} 72. Bf4 {[%emt 0:00:25]} Bg6 {[%emt 0:00:05]} 73. Kg7 {[%emt 0:00:12]} Be8 {[%emt 0:00:21]} 74. Bd6 {[%emt 0:00:21]} Bh5 {[%emt 0:00:12]} 75. Kf8 {[%emt 0:02:02]} Bg6 {[%emt 0:00:06]} 76. Bf4 {[%emt 0:00:14]} Bh5 {[%emt 0:00:07]} 77. Bg5 {[%emt 0:01:36]} Bg6 {[%emt 0:00:07]} 78. Kg7 {[%emt 0:00:34]} Be8 {[%emt 0:00:06]} 79. Bh4 {[%emt 0:00:28]} Bh5 {[%emt 0:00:09]} 80. Kf8 {[%emt 0:00:33]} Bg6 {[%emt 0:00:07]} 81. Bg3 {[%emt 0:00:37]} Bh5 {[%emt 0:00:07]} 82. e8=B+ {[%emt 0:00:16]} Bxe8 {[%emt 0:00:08]} 83. c6+ {[%emt 0:00:03]} Kxc6 {[%emt 0:00:09]} 84. Kxe8 {[%emt 0:00:03]} Kb7 {[%emt 0:00:06]} 85. Kd7 {[%emt 0:00:02]} Ka8 {[%emt 0:00:04]} 86. Kc8 {[%emt 0:00:03]} Ka7 {[%emt 0:00:04]} 87. Bf4 {[%emt 0:00:04]} Ka8 {[%emt 0:00:03]} 88. Kc7 {[%emt 0:00:24]} Ka7 {[%emt 0:00:01]} 89. Be3+ {[%emt 0:00:04]} Ka8 {[%emt 0:00:03]} 90. Kb6 {[%emt 0:00:02]} Kb8 {[%emt 0:00:03]} 91. Bd4 {[%emt 0:00:09]} Ka8 {[%emt 0:00:01]} 92. Kb5 {[%emt 0:00:03]} Kb7 {[%emt 0:00:05]} 93. Be5 {[%emt 0:00:03]} Ka8 {[%emt 0:00:05]} 94. Kb6 {[%emt 0:04:12]} 1/2-1/2

[Event "KAZ-ch Open 2019"]
[Site "Almaty"]
[Date "2019.04.21"]
[Round "1.2"]
[White "Ibrayev, Nurlan"]
[Black "Kvan, Andrey"]
[Result "1-0"]
[ECO "E06"]
[WhiteElo "2379"]
[BlackElo "2286"]
[Annotator "NA"]
[PlyCount "83"]
[EventDate "2019.04.21"]
[EventType "tourn"]
[EventCountry "KAZ"]
[SourceTitle "playchess.com"]
[Source "ChessBase"]
[SourceQuality "1"]
[TimeControl "40/5400+30:1800+30"]

1. d4 Nf6 {[%emt 0:00:08]} 2. c4 {[%emt 0:00:00]} e6 {[%emt 0:00:08]} 3. g3 {[%emt 0:00:00]} d5 {[%emt 0:01:04]} 4. Bg2 {[%emt 0:00:03]} Be7 {[%emt 0:00:20]} 5. Nf3 {[%emt 0:00:05]} O-O {[%emt 0:00:23]} 6. O-O {[%emt 0:00:05]} b6 {[%emt 0:00:35]} 7. Nc3 {[%emt 0:06:18]} Bb7 {[%emt 0:00:09]} 8. Ne5 {[%emt 0:00:52]} Nbd7 {[%emt 0:00:14]} 9. cxd5 {[%emt 0:08:48]} exd5 {[%emt 0:11:03]} 10. Qa4 {[%emt 0:07:20]} Nxe5 {[%emt 0:01:25]} 11. dxe5 {[%emt 0:00:15]} Ne8 {[%emt 0:00:05]} 12. Nxd5 {[%emt 0:02:46]} Bxd5 {[%emt 0:21:40]} 13. Rd1 {[%emt 0:00:15]} b5 {[%emt 0:00:56]} 14. Qc2 {[%emt 0:03:35]} c6 {[%emt 0:06:53]} 15. e4 {[%emt 0:00:06]} Nc7 {[%emt 0:04:21]} 16. exd5 {[%emt 0:00:13]} cxd5 {[%emt 0:00:21]} 17. Be3 {[%emt 0:01:19]} Qd7 {[%emt 0:08:57]} 18. Rac1 {[%emt 0:01:57]} Rfc8 {[%emt 0:00:20]} 19. Qc6 {[%emt 0:01:33]} Qg4 {[%emt 0:14:09]} 20. h3 {[%emt 0:06:18]} Qf5 {[%emt 0:00:27]} 21. Kh2 {[%emt 0:03:45]} g5 {[%emt 0:04:27]} 22. Qb7 {[%emt 0:04:38]} Bd8 {[%emt 0:00:23]} 23. Bxa7 {[%emt 0:05:31]} Qe6 {[%emt 0:05:56]} 24. a3 {[%emt 0:01:51]} h5 {[%emt 0:00:26]} 25. Bd4 {[%emt 0:06:40]} Rcb8 {[%emt 0:01:10]} 26. Qc6 {[%emt 0:00:08]} Ra6 {[%emt 0:00:05]} 27. Qc2 {[%emt 0:01:46]} Rb7 {[%emt 0:03:15]} 28. Qe2 {[%emt 0:03:57]} g4 {[%emt 0:02:04]} 29. hxg4 {[%emt 0:05:12]} hxg4 {[%emt 0:00:02]} 30. Be3 {[%emt 0:00:48]} b4 {[%emt 0:02:59]} 31. Rd4 {[%emt 0:00:37]} bxa3 {[%emt 0:00:38]} 32. Rxg4+ {[%emt 0:00:13]} Kf8 {[%emt 0:00:16]} 33. bxa3 {[%emt 0:01:09]} Be7 {[%emt 0:07:40]} 34. Bh3 {[%emt 0:02:47]} Bxa3 {[%emt 0:00:28]} 35. Rh4 {[%emt 0:09:20]} Qg6 {[%emt 0:01:41]} 36. Rc3 {[%emt 0:03:24]} Be7 {[%emt 0:02:11]} 37. Rh8+ {[%emt 0:02:40]} Kg7 {[%emt 0:00:08]} 38. Rh6 {[%emt 0:00:02]} Qxh6 {[%emt 0:00:45]} 39. Bxh6+ {[%emt 0:00:02]} Rxh6 {[%emt 0:00:43]} 40. Qg4+ {[%emt 0:00:13]} Rg6 {[%emt 0:00:28]} 41. Qc8 {[%emt 0:31:05]} Rb2 {[%emt 0:30:33]} 42. Qxc7 1-0

[Event "KAZ-ch Open 2019"]
[Site "Almaty"]
[Date "2019.04.21"]
[Round "1.3"]
[White "Nogerbek, Kazybek"]
[Black "Urazayev, Arystanbek"]
[Result "1/2-1/2"]
[ECO "C88"]
[WhiteElo "2341"]
[BlackElo "2446"]
[Annotator "NA"]
[PlyCount "59"]
[EventDate "2019.04.21"]
[EventType "tourn"]
[EventCountry "KAZ"]
[SourceTitle "playchess.com"]
[Source "ChessBase"]
[SourceQuality "1"]
[TimeControl "40/5400+30:1800+30"]

1. e4 {[%emt 0:00:00]} e5 {[%emt 0:02:24]} 2. Nf3 {[%emt 0:00:00]} Nc6 {[%emt 0:00:30]} 3. Bb5 {[%emt 0:00:00]} a6 {[%emt 0:00:30]} 4. Ba4 {[%emt 0:00:00]} Nf6 {[%emt 0:00:30]} 5. O-O {[%emt 0:00:00]} Be7 {[%emt 0:00:30]} 6. Re1 {[%emt 0:00:00]} b5 {[%emt 0:00:30]} 7. Bb3 {[%emt 0:00:00]} O-O {[%emt 0:00:30]} 8. h3 {[%emt 0:00:00]} Bb7 {[%emt 0:00:30]} 9. d3 {[%emt 0:00:00]} d5 {[%emt 0:00:30]} 10. exd5 {[%emt 0:00:00]} Nxd5 {[%emt 0:00:30]} 11. a4 {[%emt 0:00:00]} Nd4 {[%emt 0:00:30]} 12. Nxd4 {[%emt 0:00:17]} exd4 {[%emt 0:00:30]} 13. axb5 {[%emt 0:00:30]} axb5 {[%emt 0:00:30]} 14. Rxa8 {[%emt 0:00:30]} Bxa8 {[%emt 0:00:30]} 15. Na3 {[%emt 0:00:30]} Bb4 {[%emt 0:00:30]} 16. Bd2 {[%emt 0:00:30]} Bxd2 {[%emt 0:00:30]} 17. Qxd2 {[%emt 0:00:30]} Qf6 {[%emt 0:00:30]} 18. Bxd5 {[%emt 0:00:30]} Bxd5 {[%emt 0:00:30]} 19. Nxb5 {[%emt 0:00:30]} Bxg2 {[%emt 0:00:30]} 20. Kxg2 {[%emt 0:00:30]} Qc6+ {[%emt 0:00:30]} 21. Kg1 {[%emt 0:00:30]} Qxb5 {[%emt 0:00:30]} 22. Qf4 {[%emt 0:00:30]} Qxb2 {[%emt 0:00:30]} 23. Qxc7 {[%emt 0:00:30]} Qb8 {[%emt 0:00:30]} 24. Re7 {[%emt 0:00:30]} Qa8 {[%emt 0:00:30]} 25. Qf4 {[%emt 0:00:30]} Qc8 {[%emt 0:00:30]} 26. Qxd4 {[%emt 0:00:30]} Qxc2 {[%emt 0:00:30]} 27. Qe3 {[%emt 0:00:30]} Qc6 {[%emt 0:00:30]} 28. Qe4 {[%emt 0:00:30]} Qxe4 {[%emt 0:00:30]} 29. dxe4 {[%emt 0:00:30]} g6 {[%emt 0:00:30]} 30. Kg2 {[%emt 0:00:30]} 1/2-1/2

[Event "KAZ-ch Open 2019"]
[Site "Almaty"]
[Date "2019.04.21"]
[Round "1.4"]
[White "Kazakov, Konstantin"]
[Black "Zhalmakhanov, Ramazan"]
[Result "1/2-1/2"]
[ECO "A05"]
[WhiteElo "2369"]
[BlackElo "2346"]
[Annotator "NA"]
[PlyCount "87"]
[EventDate "2019.04.21"]
[EventType "tourn"]
[EventCountry "KAZ"]
[SourceTitle "playchess.com"]
[Source "ChessBase"]
[SourceQuality "1"]
[TimeControl "40/5400+30:1800+30"]

1. Nf3 Nf6 2. b3 d5 3. Bb2 Bf5 4. e3 e6 5. c4 Be7 6. Be2 h6 7. O-O O-O 8. Nc3 Nbd7 9. d4 c6 10. Bd3 Bd6 11. Bxf5 exf5 12. Qd3 g6 13. Rac1 a6 14. cxd5 Nxd5 15. Na4 Qe7 16. Rfe1 {[%emt 0:36:56]} Rfe8 {[%emt 0:46:36]} 17. Nc3 {[%emt 0:05:04]} Rad8 {[%emt 0:05:16]} 18. Nxd5 {[%emt 0:01:12]} cxd5 {[%emt 0:00:14]} 19. g3 {[%emt 0:00:57]} Qe4 {[%emt 0:03:10]} 20. Qd1 {[%emt 0:04:17]} Rc8 {[%emt 0:00:51]} 21. Nd2 {[%emt 0:00:26]} Qe7 {[%emt 0:03:49]} 22. Nb1 {[%emt 0:01:49]} Nf6 {[%emt 0:01:10]} 23. Qd3 {[%emt 0:08:23]} h5 {[%emt 0:04:01]} 24. Rxc8 {[%emt 0:01:09]} Rxc8 {[%emt 0:00:05]} 25. Rc1 {[%emt 0:00:10]} Rxc1+ {[%emt 0:01:53]} 26. Bxc1 {[%emt 0:00:10]} h4 {[%emt 0:00:35]} 27. Nc3 {[%emt 0:03:14]} Qe6 {[%emt 0:02:13]} 28. Bd2 {[%emt 0:02:15]} Ne4 {[%emt 0:01:54]} 29. Be1 {[%emt 0:07:00]} Kg7 {[%emt 0:05:14]} 30. f3 {[%emt 0:04:41]} Nxc3 {[%emt 0:02:21]} 31. Qxc3 {[%emt 0:00:09]} hxg3 {[%emt 0:00:43]} 32. hxg3 {[%emt 0:01:25]} g5 {[%emt 0:00:53]} 33. Qd3 {[%emt 0:01:10]} g4 {[%emt 0:00:59]} 34. f4 {[%emt 0:00:12]} Kg6 {[%emt 0:00:12]} 35. Kg2 {[%emt 0:00:30]} Ba3 {[%emt 0:02:09]} 36. Bd2 {[%emt 0:00:39]} Qc6 {[%emt 0:00:23]} 37. Qc3 {[%emt 0:00:23]} Qe8 {[%emt 0:01:38]} 38. Qc2 {[%emt 0:00:18]} Qb5 {[%emt 0:00:44]} 39. Kf2 {[%emt 0:00:42]} a5 {[%emt 0:00:33]} 40. Qc8 {[%emt 0:03:26]} a4 {[%emt 0:03:50]} 41. Qg8+ {[%emt 0:30:44]} Kf6 {[%emt 0:30:05]} 42. Qh8+ {[%emt 0:00:30]} Kg6 {[%emt 0:00:06]} 43. Qg8+ {[%emt 0:00:05]} Kf6 {[%emt 0:00:03]} 44. Qh8+ {[%emt 0:00:30] Ke5} 1/2-1/2

[Event "KAZ-ch Open 2019"]
[Site "Almaty"]
[Date "2019.04.21"]
[Round "1.5"]
[White "Kazhgaleyev, Murtas"]
[Black "Moisseyenko, Ilya"]
[Result "1/2-1/2"]
[ECO "A50"]
[WhiteElo "2578"]
[BlackElo "2329"]
[Annotator "ChessBase"]
[PlyCount "91"]
[EventDate "2019.04.21"]
[EventType "tourn"]
[EventCountry "KAZ"]
[SourceTitle "playchess.com"]
[Source "ChessBase"]
[SourceQuality "1"]
[TimeControl "40/5400+30:1800+30"]

1. d4 {[%emt 0:00:00]} Nf6 {[%emt 0:00:00]} 2. c4 {[%emt 0:00:00]} c6 {[%emt 0:00:01]} 3. Nc3 {[%emt 0:00:51]} d5 {[%emt 0:00:06]} 4. cxd5 {[%emt 0:01:30]} cxd5 {[%emt 0:00:05]} 5. Bf4 {[%emt 0:00:03]} Nc6 {[%emt 0:00:18]} 6. e3 {[%emt 0:00:05]} a6 {[%emt 0:00:03]} 7. Be2 {[%emt 0:00:28]} e6 {[%emt 0:13:00]} 8. Nf3 {[%emt 0:01:56]} Bd6 {[%emt 0:00:18]} 9. Ne5 {[%emt 0:08:59]} Bxe5 {[%emt 0:03:49]} 10. Bxe5 {[%emt 0:00:17]} Nxe5 {[%emt 0:04:23]} 11. dxe5 {[%emt 0:00:04]} Nd7 {[%emt 0:06:37]} 12. Qd4 {[%emt 0:02:27]} f6 {[%emt 0:02:35]} 13. exf6 {[%emt 0:01:31]} Qxf6 {[%emt 0:00:19]} 14. Qd2 {[%emt 0:01:32]} O-O {[%emt 0:14:07]} 15. O-O {[%emt 0:00:11]} Ne5 {[%emt 0:00:51]} 16. Rad1 {[%emt 0:05:26]} Nc6 {[%emt 0:03:54]} 17. f4 {[%emt 0:07:57]} Rd8 {[%emt 0:05:23]} 18. e4 {[%emt 0:04:21]} d4 {[%emt 0:01:50]} 19. Nb1 {[%emt 0:06:26]} e5 {[%emt 0:00:39]} 20. f5 {[%emt 0:02:35]} Bd7 {[%emt 0:02:33]} 21. Na3 {[%emt 0:07:45]} b5 {[%emt 0:08:58]} 22. Nc2 {[%emt 0:00:45]} Be8 {[%emt 0:01:02]} 23. Ne1 {[%emt 0:03:35]} Bf7 {[%emt 0:00:19]} 24. b3 {[%emt 0:00:49]} Rac8 {[%emt 0:02:24]} 25. Nd3 {[%emt 0:05:13]} Qd6 {[%emt 0:07:12]} 26. Qg5 {[%emt 0:09:41]} Qf6 {[%emt 0:00:12]} 27. Qg3 {[%emt 0:02:24]} a5 {[%emt 0:04:50]} 28. Nf2 {[%emt 0:01:30]} h5 {[%emt 0:01:26]} 29. Bxb5 {[%emt 0:00:54]} Nb4 {[%emt 0:00:11]} 30. Nd3 {[%emt 0:06:52]} Nxd3 {[%emt 0:02:47]} 31. Qxd3 {[%emt 0:00:18]} Rc3 {[%emt 0:00:11]} 32. Qd2 {[%emt 0:00:11]} Rdc8 {[%emt 0:00:33]} 33. Rf2 {[%emt 0:03:05]} h4 {[%emt 0:01:12]} 34. Kh1 {[%emt 0:02:00]} R8c5 {[%emt 0:02:51]} 35. Bd3 {[%emt 0:01:01]} Rc7 {[%emt 0:00:34]} 36. Rg1 {[%emt 0:01:51]} Kf8 {[%emt 0:05:21]} 37. g4 {[%emt 0:01:10]} hxg3 {[%emt 0:00:05]} 38. Rxg3 {[%emt 0:00:07]} Qh4 {[%emt 0:02:08]} 39. Rf1 {[%emt 0:03:27]} a4 {[%emt 0:01:04]} 40. Qg2 {[%emt 0:04:27]} axb3 {[%emt 0:01:25]} 41. axb3 {[%emt 0:01:03]} Rxb3 {[%emt 0:11:13]} 42. f6 {[%emt 0:10:37]} gxf6 {[%emt 0:01:02]} 43. Rh3 {[%emt 0:03:24]} Qg5 {[%emt 0:00:19]} 44. Rg3 {[%emt 0:05:58]} Qh6 {[%emt 0:01:03]} 45. Rh3 {[%emt 0:01:41]} Qg5 {[%emt 0:01:54]} 46. Rg3 {[%emt 0:00:40]} 1/2-1/2

[Event "KAZ-ch Open 2019"]
[Site "Almaty"]
[Date "2019.04.21"]
[Round "1.6"]
[White "Makhnev, Denis"]
[Black "Ismagambetov, Anuar"]
[Result "1/2-1/2"]
[ECO "E01"]
[WhiteElo "2483"]
[BlackElo "2554"]
[Annotator "ChessBase"]
[PlyCount "46"]
[EventDate "2019.04.21"]
[EventType "tourn"]
[EventCountry "KAZ"]
[SourceTitle "playchess.com"]
[Source "ChessBase"]
[SourceQuality "1"]
[TimeControl "40/5400+30:1800+30"]

1. d4 {[%emt 0:00:00]} Nf6 {[%emt 0:00:00]} 2. c4 {[%emt 0:00:00]} e6 {[%emt 0:00:00]} 3. g3 {[%emt 0:00:00]} d5 {[%emt 0:00:03]} 4. Bg2 {[%emt 0:00:00]} dxc4 {[%emt 0:01:31]} 5. Qa4+ {[%emt 0:00:00]} Nc6 {[%emt 0:01:45]} 6. e3 {[%emt 0:01:42]} Bd6 {[%emt 0:08:05]} 7. Ne2 {[%emt 0:01:28]} O-O {[%emt 0:01:49]} 8. Qxc4 {[%emt 0:01:04]} e5 {[%emt 0:07:50]} 9. O-O {[%emt 0:01:34]} Bg4 {[%emt 0:03:22]} 10. Nbc3 {[%emt 0:02:28]} Qd7 {[%emt 0:04:28]} 11. f3 {[%emt 0:25:41]} exd4 {[%emt 0:13:58]} 12. Nxd4 {[%emt 0:00:24]} Ne5 {[%emt 0:06:53]} 13. Qe2 {[%emt 0:01:09]} Bh3 {[%emt 0:05:55]} 14. Rd1 {[%emt 0:00:37]} Rae8 {[%emt 0:10:08]} 15. e4 {[%emt 0:05:21]} Bc5 {[%emt 0:00:33]} 16. Be3 {[%emt 0:00:12]} Bxg2 {[%emt 0:00:13]} 17. Kxg2 {[%emt 0:00:13]} Qc8 {[%emt 0:00:22]} 18. Rac1 {[%emt 0:02:38]} Nfd7 {[%emt 0:03:26]} 19. Ncb5 {[%emt 0:06:52]} c6 {[%emt 0:06:18]} 20. Nxc6 {[%emt 0:09:11]} Qxc6 {[%emt 0:00:48]} 21. Bxc5 {[%emt 0:00:06]} Nxc5 {[%emt 0:00:41]} 22. Rd6 {[%emt 0:00:06]} Ned3 {[%emt 0:05:42]} 23. Rxc6 {[%emt 0:01:10]} Nxc1 {[%emt 0:00:00]} 1/2-1/2

[Event "KAZ-ch Open 2019"]
[Site "Almaty"]
[Date "2019.04.22"]
[Round "2.1"]
[White "Agmanov, Zhandos"]
[Black "Ismagambetov, Anuar"]
[Result "1/2-1/2"]
[ECO "B33"]
[WhiteElo "2394"]
[BlackElo "2554"]
[Annotator "ChessBase"]
[PlyCount "52"]
[EventDate "2019.04.21"]
[EventType "tourn"]
[EventCountry "KAZ"]
[SourceTitle "playchess.com"]
[Source "ChessBase"]
[SourceQuality "1"]
[TimeControl "40/5400+30:1800+30"]

1. e4 {[%emt 0:00:50]} c5 {[%emt 0:00:00]} 2. Nf3 {[%emt 0:00:46]} e6 {[%emt 0:00:00]} 3. d4 {[%emt 0:00:20]} cxd4 {[%emt 0:00:00]} 4. Nxd4 {[%emt 0:00:06]} Nf6 {[%emt 0:00:08]} 5. Nc3 {[%emt 0:07:25]} Nc6 {[%emt 0:00:49]} 6. Ndb5 {[%emt 0:00:14]} d6 {[%emt 0:00:17]} 7. Bf4 {[%emt 0:00:10]} e5 {[%emt 0:00:05]} 8. Bg5 {[%emt 0:00:08]} a6 {[%emt 0:00:04]} 9. Na3 {[%emt 0:00:18]} b5 {[%emt 0:00:05]} 10. Nd5 {[%emt 0:00:22]} Be7 {[%emt 0:00:06]} 11. Bxf6 {[%emt 0:00:12]} Bxf6 {[%emt 0:00:06]} 12. c4 {[%emt 0:00:50]} b4 {[%emt 0:01:52]} 13. Nc2 {[%emt 0:00:15]} O-O {[%emt 0:00:08]} 14. g3 {[%emt 0:01:50]} g6 {[%emt 0:01:58]} 15. Bg2 {[%emt 0:01:17]} Bg7 {[%emt 0:00:21]} 16. O-O {[%emt 0:02:54]} a5 {[%emt 0:01:58]} 17. Qd3 {[%emt 0:02:32]} Be6 {[%emt 0:21:28]} 18. Rad1 {[%emt 0:10:42]} Qb8 {[%emt 0:06:41]} 19. b3 {[%emt 0:03:07]} Qa7 {[%emt 0:05:50]} 20. Kh1 {[%emt 0:17:23]} Rad8 {[%emt 0:04:04]} 21. Nce3 {[%emt 0:11:01]} Nd4 {[%emt 0:20:40]} 22. f4 {[%emt 0:15:39]} f5 {[%emt 0:02:18]} 23. Bh3 {[%emt 0:05:41]} Qd7 {[%emt 0:03:40]} 24. Rde1 {[%emt 0:05:55]} Kh8 {[%emt 0:00:46]} 25. Qb1 {[%emt 0:00:28]} Rf7 {[%emt 0:03:02]} 26. Rf2 {[%emt 0:04:50]} Rdf8 {[%emt 0:03:13]} 1/2-1/2